bitfinex-derivatives/quotes_ETHF0:USTF0_20240923
["timestamp","ask_amount","ask_price","bid_price","bid_amount"]
[1727070486889,1.3254,2663.7,2663.5,3.2078]
[1727070487096,0.95,2663.7,2663.5,3.2078]
[1727070487278,1.3254,2663.7,2663.5,3.2078]
[1727070487981,0.95,2663.7,2663.5,3.2078]
[1727070490489,1.3254,2663.7,2663.5,3.2078]
[1727070491088,0.95,2663.7,2663.5,3.2078]
[1727070493192,0.95,2663.7,2663.5,3.6043]
[1727070494080,0.7647,2663.8,2663.5,3.97972]
[1727070494390,0.7647,2663.8,2663.5,4.58238153]
[1727070494591,0.7647,2663.8,2663.6,1.35348153]
[1727070495689,0.3887,2663.9,2663.8,0.37538]
[1727070495885,1.95586065,2664.2,2663.8,0.37538]
[1727070495886,0.95,2664.0,2663.8,4.56126153]
[1727070496095,0.95,2664.0,2663.9,0.3665]
[1727070496894,0.7557,2664.1,2663.9,0.3665]
[1727070496895,0.7557,2664.1,2663.9,0.74187]
[1727070497095,1.7057,2664.1,2663.9,0.74187]
[1727070497290,1.7057,2664.1,2663.9,0.3665]
[1727070501704,1.7057,2664.1,2663.8,4.18588153]
[1727070501899,0.95,2663.9,2663.8,4.18588153]
[1727070502202,0.95,2663.9,2663.8,3.2078]
[1727070506308,0.95,2663.9,2663.8,3.58318]
[1727070506603,0.95,2663.9,2663.8,4.56126153]
[1727070506809,0.95,2663.9,2663.8,3.58318]
[1727070507105,0.95,2663.9,2663.8,4.56126153]
[1727070509193,0.95,2663.9,2663.8,3.58318]
[1727070510909,0.7557,2664.1,2663.9,0.37537]
[1727070511095,0.95,2664.0,2663.8,3.58317]
[1727070511403,0.95,2664.0,2663.8,4.56125153]
[1727070511901,0.95,2664.0,2663.9,0.37537]
[1727070513213,0.95,2664.0,2663.8,4.56125153]
[1727070513407,0.95,2664.0,2663.8,4.56126153]
[1727070513607,0.95,2664.0,2663.8,3.58318]
[1727070515510,0.95,2664.0,2663.8,4.56126153]
[1727070518111,0.95,2664.0,2663.8,1.35346153]
[1727070518311,1.32535,2664.0,2663.8,4.18588153]
[1727070518614,0.95,2664.0,2663.8,4.18588153]
[1727070519213,0.95,2664.0,2663.8,3.2078]
[1727070519514,0.95,2664.0,2663.8,4.56126153]
[1727070521316,0.95,2664.0,2663.8,4.18588153]
[1727070521523,0.37537,2663.9,2663.8,4.18588153]
[1727070521813,1.32536,2664.0,2663.8,3.2078]
[1727070522006,0.37537,2663.9,2663.8,3.2078]
[1727070523111,1.32536,2664.0,2663.8,3.2078]
[1727070524406,0.7557,2664.1,2663.8,4.18588153]
[1727070524709,0.95,2664.0,2663.9,0.97808153]
[1727070533821,0.95,2664.0,2663.8,4.18588153]
[1727070535216,0.95,2664.0,2663.9,0.97808153]
[1727070535527,0.95,2664.0,2663.9,2.24359943]
[1727070535720,0.95,2664.0,2663.9,0.97808153]
[1727070536431,0.95,2664.0,2663.9,2.2482656]
[1727070537224,0.95,2664.0,2663.9,2.73288557]
[1727070538224,0.95,2664.0,2663.9,3.31916121]
[1727070538623,1.32535,2664.0,2663.9,2.24891093]
[1727070538825,1.32535,2664.0,2663.9,2.24976691]
[1727070539023,1.32535,2664.0,2663.9,0.98314766]
[1727070539223,1.32535,2664.0,2663.9,2.24995506]
[1727070539723,0.95,2664.0,2663.9,2.24995506]
[1727070540129,0.95,2664.0,2663.9,2.7339297]
[1727070540327,0.95,2664.0,2663.9,1.2668074]
[1727070540328,2.90586065,2664.0,2663.9,1.2668074]
[1727070540523,0.95,2664.0,2663.9,2.733804]
[1727070540833,0.95,2664.0,2663.9,1.2666817]
[1727070541026,0.95,2664.0,2663.9,1.85298332]
[1727070541326,0.95,2664.0,2663.9,3.32762264]
[1727070541530,0.95,2664.0,2663.9,1.85298332]
[1727070541826,0.95,2664.0,2663.9,2.23488332]
[1727070542628,0.95,2664.0,2663.9,3.70935835]
[1727070543124,1.32535,2664.0,2663.9,2.74115673]
[1727070543335,2.90586065,2664.0,2663.9,1.2666817]
[1727070543633,0.95,2664.0,2663.9,2.74115673]
[1727070543824,2.90586065,2664.0,2663.9,1.2666817]
[1727070544025,2.90586065,2664.0,2663.9,2.74115673]
[1727070544223,2.90586065,2664.0,2663.9,2.74062135]
[1727070544428,3.28121065,2664.0,2663.9,1.26614632]
[1727070544620,3.28121065,2664.0,2663.9,2.24890528]
[1727070545129,3.28121065,2664.0,2663.9,1.26614632]
[1727070545634,2.90586065,2664.0,2663.9,1.26614632]
[1727070545823,0.95,2664.0,2663.9,1.26614632]
[1727070546030,2.90586065,2664.0,2663.9,1.26614632]
[1727070546231,2.90586065,2664.0,2663.9,2.24885636]
[1727070546733,1.32535,2664.0,2663.9,1.26614632]
[1727070546946,2.90586065,2664.0,2663.9,2.24884543]
[1727070547124,7.03481065,2664.0,2663.9,2.24884543]
[1727070547344,14.08681581,2664.0,2663.7,0.98269911]
[1727070547523,0.37539,2663.7,2663.6,0.98269911]
[1727070547720,0.37541,2663.6,2663.5,4.19049911]
[1727070547924,3.47656769,2663.6,2663.5,5.45688984]
[1727070548129,1.50601,2663.6,2663.5,5.45688984]
[1727070548332,3.47656769,2663.6,2663.5,3.2078]
[1727070549140,1.50601,2663.6,2663.5,4.19049911]
[1727070549331,1.1306,2663.6,2663.5,4.19049911]
[1727070549834,1.97055769,2663.9,2663.5,6.53357438]
[1727070550035,0.95,2663.7,2663.6,3.10194007]
[1727070553334,0.95,2663.7,2663.6,3.68752238]
[1727070553637,0.95,2663.7,2663.6,3.10194007]
[1727070553938,6.54165769,2664.1,2663.6,3.10194007]
[1727070553939,0.95,2663.9,2663.7,0.37539]
[1727070554127,2.0931,2664.1,2663.8,6.53175718]
[1727070554332,2.0931,2664.1,2664.0,0.98192978]
[1727070554639,1.1431,2664.1,2664.0,0.98192978]
[1727070556840,1.51844,2664.1,2663.9,0.98192978]
[1727070557046,1.32535,2664.0,2663.9,0.98192978]
[1727070557249,0.95,2664.0,2663.9,2.24706317]
[1727070558046,0.95,2664.0,2663.9,2.2471185]
[1727070558339,0.95,2664.0,2663.9,2.24713513]
[1727070559931,1.97055769,2664.2,2663.9,2.24713513]
[1727070560137,0.95,2664.1,2664.0,0.98192978]
[1727070560342,0.95,2664.1,2664.0,41.78192978]
[1727070560934,0.95,2664.1,2664.0,0.98192978]
[1727070561136,1.32535,2664.1,2663.9,0.98192978]
[1727070561335,0.37535,2664.0,2663.9,0.98192978]
[1727070562651,0.37535,2664.0,2663.9,4.18972978]
[1727070562950,0.37537,2663.9,2663.8,0.98192978]
[1727070563249,2.07947,2663.9,2663.8,2.24753963]
[1727070563450,5.83307,2663.9,2663.8,2.24753963]
[1727070563643,0.37538,2663.8,2663.7,0.98192978]
[1727070563843,6.08575769,2663.8,2663.5,4.18972978]
[1727070564149,0.95,2663.6,2663.5,4.18972978]
[1727070564345,1.32541,2663.6,2663.5,3.2078]
[1727070564854,7.05036769,2663.6,2663.5,3.2078]
[1727070565459,5.07981,2663.6,2663.5,3.2078]
[1727070565950,7.05036769,2663.6,2663.5,3.2078]
[1727070566352,6.17981,2663.6,2663.5,3.2078]
[1727070567455,0.37543,2663.5,2663.2,4.55242978]
[1727070567654,0.3858,2663.4,2663.2,4.55242978]
[1727070567856,0.76124,2663.4,2663.2,4.55242978]
[1727070568058,0.76124,2663.4,2663.3,0.98192978]
[1727070568257,2.81124,2663.4,2663.3,0.98192978]
[1727070568450,0.37545,2663.3,2663.2,4.18972978]
[1727070568645,0.37545,2663.3,2663.2,5.45506269]
[1727070569354,0.37545,2663.3,2663.2,4.18972978]
[1727070569759,2.81124,2663.4,2663.2,4.18972978]
[1727070570655,0.37545,2663.3,2663.2,4.18972978]
[1727070571858,2.4358,2663.4,2663.2,4.18954287]
[1727070571859,2.81124,2663.4,2663.2,4.18954287]
[1727070573059,0.37545,2663.3,2663.2,4.18954287]
[1727070573257,2.42545,2663.3,2663.2,4.18954287]
[1727070573455,2.42545,2663.3,2663.2,3.2078]
[1727070573855,7.11928,2663.3,2663.2,3.2078]
[1727070574058,13.11928,2663.3,2663.2,3.00654374]
[1727070575264,0.37551,2662.9,2662.7,0.98174287]
[1727070575567,1.1206,2662.8,2662.7,0.98174287]
[1727070575769,1.1206,2662.8,2662.6,1.34994287]
[1727070576269,2.05,2662.7,2662.6,1.34994287]
[1727070576467,2.05,2662.7,2662.6,0.3682]
[1727070583677,0.74,2662.8,2662.6,0.74375]
[1727070583873,2.05,2662.9,2662.6,0.74375]
[1727070584076,2.05,2662.9,2662.8,3.2078]
[1727070584469,2.05,2662.9,2662.6,0.74375]
[1727070584671,2.05,2662.9,2662.8,3.2078]
[1727070585075,2.05,2662.9,2662.6,0.74375]
[1727070585987,2.05,2662.9,2662.6,0.3682]
[1727070586180,2.05,2662.9,2662.8,3.2078]
[1727070586865,2.05,2662.9,2662.6,0.3682]
[1727070588069,2.05,2662.9,2662.8,3.2078]
[1727070588270,0.95,2662.9,2662.8,3.2078]
[1727070589778,0.95,2662.9,2662.6,0.3682]
[1727070590075,0.95,2662.7,2662.6,0.3682]
[1727070598281,0.95,2662.7,2662.6,0.74375]
[1727070598792,0.95,2662.9,2662.8,0.37552]
[1727070598990,0.95,2662.9,2662.8,3.58332]
[1727070599182,0.95,2662.9,2662.8,7.33852]
[1727070599390,0.3723,2663.4,2663.1,0.37547]
[1727070599693,0.95,2663.3,2663.2,0.75176]
[1727070600084,0.95,2663.3,2663.2,4.50696]
[1727070600489,3.94409923,2664.0,2663.2,4.1315]
[1727070600490,0.95,2663.5,2663.2,4.1315]
[1727070600693,0.95,2663.7,2663.5,0.37541]
[1727070600893,0.95,2663.7,2663.6,0.3793]
[1727070601099,1.32539,2663.7,2663.4,3.2078]
[1727070601386,0.95,2663.5,2663.4,3.96254]
[1727070601595,0.95,2663.5,2663.4,3.5871]
[1727070601784,0.95,2663.5,2663.4,3.2078]
[1727070604492,1.32542,2663.5,2663.4,3.2078]
[1727070604693,0.95,2663.5,2663.4,3.2078]
[1727070605514,1.32542,2663.5,2663.4,3.2078]
[1727070609299,1.32542,2663.5,2663.2,0.98174287]
[1727070609502,0.95,2663.3,2663.2,0.98174287]
[1727070609702,0.95,2663.3,2663.2,4.18954287]
[1727070611496,1.1338,2663.4,2663.2,45.36500287]
[1727070612002,0.95,2663.5,2663.4,0.37544]
[1727070612313,0.95,2663.6,2663.5,0.37542]
[1727070612495,0.95,2663.6,2663.5,3.58322]
[1727070612699,0.95,2663.6,2663.5,7.33762]
[1727070613102,0.95,2663.6,2663.5,6.9622]
[1727070614304,0.95,2663.6,2663.5,7.33762]
[1727070615205,1.50477,2663.9,2663.5,9.58138616]
[1727070615507,0.95,2663.7,2663.5,4.56496287]
[1727070615993,0.95,2663.7,2663.5,8.31936287]
[1727070618197,0.95,2663.7,2663.5,7.94394287]
[1727070619300,0.95,2663.7,2663.5,6.9622]
[1727070619501,0.95,2663.7,2663.5,7.33762]
[1727070619811,0.95,2663.7,2663.6,0.3754]
[1727070620208,0.95,2663.7,2663.6,41.1754]
[1727070620414,0.95,2663.7,2663.6,44.9298]
[1727070623011,0.95,2663.7,2663.6,41.1754]
[1727070625211,0.95,2663.7,2663.6,44.9298]
[1727070625411,0.95,2663.7,2663.6,41.1754]
[1727070626010,0.95,2663.7,2663.6,45.316]
[1727070626210,0.95,2663.7,2663.6,41.5616]
[1727070626407,0.95,2663.7,2663.6,45.316]
[1727070626807,0.95,2663.7,2663.6,41.5616]
[1727070627418,0.95,2663.7,2663.6,44.7694]
[1727070627610,0.95,2663.7,2663.6,48.5238]
[1727070627812,0.95,2663.7,2663.6,44.7694]
[1727070628017,0.95,2663.7,2663.6,48.5238]
[1727070628313,0.95,2663.7,2663.6,44.7694]
[1727070628516,0.95,2663.7,2663.6,48.5238]
[1727070628811,0.95,2663.7,2663.6,44.7694]
[1727070629401,0.95,2663.7,2663.6,41.5616]
[1727070629605,0.95,2663.7,2663.6,44.7694]
[1727070630210,0.95,2663.7,2663.6,41.5616]
[1727070630510,0.95,2663.7,2663.6,44.7694]
[1727070634010,0.95,2663.7,2663.6,41.5616]
[1727070634207,0.95,2663.7,2663.6,44.7694]
[1727070635105,0.95,2663.7,2663.6,44.0078]
[1727070635317,0.95,2663.7,2663.6,3.2078]
[1727070635318,1.32539,2663.7,2663.6,3.2078]
[1727070635910,5.07979,2663.7,2663.6,3.2078]
[1727070644709,4.7044,2663.7,2663.3,4.18954287]
[1727070644917,0.95,2663.4,2663.3,3.2078]
[1727070648017,1.705,2663.4,2663.3,3.2078]
[1727070651421,1.705,2663.4,2663.2,0.98174287]
[1727070651625,0.3927,2663.3,2663.2,0.98174287]
[1727070651825,0.3927,2663.3,2663.2,4.18954287]
[1727070656216,0.3927,2663.3,2663.2,3.2078]
[1727070658223,0.37546,2663.2,2663.1,0.98174287]
[1727070658429,0.37549,2663.0,2662.9,0.98174287]
[1727070658629,1.32549,2663.0,2662.8,4.18954287]
[1727070658824,1.1531,2662.9,2662.8,4.18954287]
[1727070659029,1.1531,2662.9,2662.8,5.45172383]
[1727070659326,1.1531,2662.9,2662.8,4.18954287]
[1727070661425,9.68472504,2663.7,2662.8,9.2064303]
[1727070661733,1.3215,2663.3,2663.1,3.2078]
[1727070661921,1.3215,2663.3,2663.2,0.7412]
[1727070662425,1.3215,2663.3,2662.9,1.72454287]
[1727070662426,5.0767,2663.3,2662.9,0.3673]
[1727070662727,0.95,2663.0,2662.9,0.3673]
[1727070663925,0.3715,2663.3,2662.9,0.3673]
[1727070664120,0.95,2663.2,2663.0,0.37549]
[1727070664320,0.95,2663.2,2663.1,0.7331]
[1727070667233,0.95,2663.2,2663.1,4.31638]
[1727070667427,0.95,2663.2,2663.1,5.57824561]
[1727070667629,0.95,2663.5,2663.2,0.37546]
[1727070667835,0.95,2663.5,2663.2,1.73408255]
[1727070668623,1.32542,2663.5,2663.2,1.35862255]
[1727070669628,0.95,2663.3,2663.2,1.35862255]
[1727070669936,1.32545,2663.3,2663.1,0.7331]
[1727070670127,2.07165,2663.3,2663.1,3.2078]
[1727070671734,0.37546,2663.2,2663.0,0.98132255]
[1727070672034,0.95,2663.1,2662.9,0.98132255]
[1727070672433,0.3838,2663.0,2662.9,0.98132255]
[1727070673028,0.3838,2663.0,2662.9,2.24442325]
[1727070674229,0.3838,2663.0,2662.9,2.24473095]
[1727070674433,0.3838,2663.0,2662.9,2.24615798]
[1727070674641,0.3838,2663.0,2662.9,1.2634084]
[1727070674837,0.3838,2663.0,2662.9,2.24642188]
[1727070675039,0.3838,2663.0,2662.9,1.2634084]
[1727070675240,0.3838,2663.0,2662.9,2.73629448]
[1727070675935,0.3838,2663.0,2662.9,1.2634084]
[1727070676239,0.3838,2663.0,2662.9,2.73629448]
[1727070676543,0.3838,2663.0,2662.9,2.2467972]
[1727070677239,0.3838,2663.0,2662.9,1.2634084]
[1727070677834,0.3838,2663.0,2662.9,2.73629448]
[1727070678034,0.3838,2663.0,2662.9,1.2634084]
[1727070678237,0.3838,2663.0,2662.9,2.73629448]
[1727070680633,0.95,2663.1,2662.9,3.11180448]
[1727070680837,0.95,2663.2,2663.0,5.94409448]
[1727070681036,0.95,2663.2,2663.1,1.3595514]
[1727070681835,0.95,2663.2,2663.1,1.64105371]
[1727070682036,0.95,2663.2,2663.1,3.11393979]
[1727070687151,1.32546,2663.2,2663.1,3.11393979]
[1727070687344,1.32546,2663.2,2663.1,1.64105371]
[1727070687549,1.32546,2663.2,2663.1,3.11393979]
[1727070687946,0.95,2663.2,2663.1,2.73843979]
[1727070688351,0.95,2663.2,2663.1,3.32544738]
[1727070688550,0.95,2663.2,2663.1,2.05989367]
[1727070688755,0.95,2663.2,2663.1,1.85298588]
[1727070688952,0.3749,2663.3,2663.1,1.85298588]
[1727070689158,0.95,2663.4,2663.2,4.20404895]
[1727070689347,0.95,2663.4,2663.3,3.69846411]
[1727070689549,0.95,2663.4,2663.3,3.11150917]
[1727070690256,0.95,2663.4,2663.3,0.98463073]
[1727070694362,0.95,2663.4,2663.3,2.25074845]
[1727070695264,1.32544,2663.4,2663.3,2.25074845]
[1727070695562,1.32544,2663.4,2663.1,0.98463073]
[1727070695563,14.28764,2663.4,2663.1,0.98463073]
[1727070695763,0.37548,2663.1,2663.0,0.98463073]
[1727070696158,0.37548,2663.1,2662.8,1.47673088]
[1727070696159,0.37549,2663.0,2662.9,0.98463073]
[1727070696362,1.32549,2663.0,2662.9,0.98463073]
[1727070696563,5.08069,2663.0,2662.9,0.98463073]
[1727070697566,0.37551,2662.9,2662.8,0.98463073]
[1727070697764,1.32551,2662.9,2662.8,0.98463073]
[1727070698865,0.37552,2662.8,2662.7,0.98463073]
[1727070699172,0.37553,2662.7,2662.6,0.98463073]
[1727070699373,1.51383,2662.7,2662.6,0.98463073]
[1727070699669,1.51383,2662.7,2662.5,0.98463073]
[1727070699868,0.95,2662.6,2662.5,0.98463073]
[1727070700061,0.95,2662.6,2662.5,2.25042183]
[1727070700263,0.95,2662.6,2662.5,0.98463073]
[1727070702360,1.32555,2662.6,2662.5,0.98463073]
[1727070702561,0.37556,2662.5,2662.4,0.98463073]
[1727070702872,0.95,2662.5,2662.4,0.98463073]
[1727070703069,4.706,2662.5,2662.3,0.98463073]
[1727070703370,0.95,2662.5,2662.3,0.98463073]
[1727070705574,0.95,2662.5,2662.2,4.92843073]
[1727070705766,0.95,2662.3,2662.2,4.92843073]
[1727070705969,0.95,2662.3,2662.2,6.19271609]
[1727070706166,0.37555,2662.6,2662.2,6.68480478]
[1727070706365,0.95,2662.3,2662.2,5.42053088]
[1727070706566,0.95,2662.3,2662.2,5.20557221]
[1727070706967,0.95,2662.5,2662.2,6.5644035]
[1727070707164,0.95,2662.5,2662.4,0.98322129]
[1727070707474,0.088,2663.1,2663.0,0.37549]
[1727070707770,8.96790846,2663.7,2663.1,0.37548]
[1727070707771,0.7354,2663.6,2663.1,0.37548]
[1727070707966,0.95,2663.5,2663.3,3.2078]
[1727070708163,0.95,2663.5,2663.3,44.0078]
[1727070708369,0.95,2663.5,2663.3,40.8]
[1727070708570,0.95,2663.5,2663.3,44.0078]
[1727070708873,1.32542,2663.5,2663.3,3.2078]
[1727070709579,0.95,2663.5,2663.3,3.2078]
[1727070710301,2.05,2663.5,2663.3,3.2078]
[1727070711174,0.3931,2664.0,2663.7,0.37538]
[1727070711378,10.43954,2664.1,2663.8,0.76858]
[1727070711673,10.43954,2664.1,2663.8,1.14018]
[1727070712379,10.43954,2664.1,2663.8,0.7648]
[1727070714377,10.43954,2664.1,2663.8,1.14018]
[1727070714578,10.43954,2664.1,2663.9,3.2078]
[1727070715168,10.43954,2664.1,2663.8,2.12207052]
[1727070715365,10.43954,2664.1,2663.8,1.14018]
[1727070715577,10.43954,2664.1,2663.9,3.2078]
[1727070720490,10.43954,2664.1,2663.9,3.58317]
[1727070720673,10.43954,2664.1,2663.9,3.2078]
[1727070721472,10.43954,2664.1,2663.9,3.58316]
[1727070721669,10.43954,2664.1,2663.9,3.2078]
[1727070722881,10.43954,2664.1,2663.9,3.58316]
[1727070723783,10.43954,2664.1,2663.9,3.2078]
[1727070723989,0.37535,2664.0,2663.9,3.2078]
[1727070724174,0.76855,2664.0,2663.9,3.2078]
[1727070725083,0.3932,2664.0,2663.9,3.2078]
[1727070727585,10.43954,2664.1,2663.9,3.58317]
[1727070727785,10.43954,2664.1,2664.0,0.3597]
[1727070728492,10.43954,2664.1,2664.0,0.73505]
[1727070728679,10.05154,2664.1,2664.0,10.87365]
[1727070728880,10.05154,2664.1,2664.0,5.26025]
[1727070732998,10.05154,2664.1,2664.0,11.26025]
[1727070734604,10.05154,2664.1,2664.0,52.06025]
[1727070737503,10.05154,2664.1,2664.0,45.67365]
[1727070737697,10.05154,2664.1,2664.0,44.92895]
[1727070737892,10.05154,2664.1,2664.0,41.17535]
[1727070738497,10.05154,2664.1,2664.0,44.92895]
[1727070741600,10.05154,2664.1,2664.0,50.92895]
[1727070742899,10.05154,2664.1,2664.0,44.92895]
[1727070744890,10.05154,2664.1,2664.0,41.17535]
[1727070746191,10.05154,2664.1,2664.0,40.8]
[1727070746393,10.05154,2664.1,2664.0,41.17535]
[1727070746594,10.81054,2664.1,2664.0,41.17535]
[1727070748298,10.81054,2664.1,2664.0,44.38315]
[1727070749503,10.81054,2664.1,2664.0,44.0078]
[1727070750101,10.81054,2664.1,2664.0,44.38315]
[1727070750598,10.81054,2664.1,2664.0,44.0078]
[1727070751003,10.81054,2664.1,2664.0,3.2078]
[1727070754402,10.81054,2664.1,2664.0,3.58315]
[1727070754598,10.05154,2664.1,2664.0,8.5946576]
[1727070754896,10.05154,2664.1,2664.0,9.5421349]
[1727070755102,9.11281999,2664.1,2664.0,11.50685389]
[1727070755300,9.11281999,2664.1,2664.0,14.02297362]
[1727070755497,9.11281999,2664.1,2664.0,11.50685389]
[1727070756303,9.11281999,2664.1,2664.0,14.0162989]
[1727070757412,9.11281999,2664.1,2664.0,18.05157991]
[1727070757601,9.11281999,2664.1,2664.0,18.04948996]
[1727070757911,9.11281999,2664.1,2664.0,21.44100357]
[1727070758215,0.3638,2664.3,2664.2,0.37532]
[1727070758404,0.3638,2664.3,2664.2,3.10133648]
[1727070761799,0.3638,2664.3,2664.2,2.72601648]
[1727070762111,0.3638,2664.3,2664.2,0.98103763]
[1727070763105,0.3638,2664.3,2664.1,0.98103763]
[1727070763310,0.3638,2664.3,2664.2,0.98103763]
[1727070766701,0.73911,2664.3,2664.2,0.98103763]
[1727070766905,0.73911,2664.3,2664.0,4.678928]
[1727070766906,0.37532,2664.2,2664.1,0.98103763]
[1727070767305,0.37532,2664.2,2664.0,4.18883763]
[1727070767516,0.37532,2664.2,2664.1,0.98103763]
[1727070767911,0.37532,2664.2,2664.0,4.18883763]
[1727070769616,0.37534,2664.1,2664.0,4.18883763]
[1727070769816,4.12894,2664.1,2664.0,3.2078]
[1727070771410,12.17894,2664.1,2664.0,3.2078]
[1727070771617,0.37535,2664.0,2663.9,0.98103763]
[1727070771818,4.12895,2664.0,2663.9,0.98103763]
[1727070772120,0.37537,2663.9,2663.8,4.18883763]
[1727070772320,1.54817,2663.9,2663.8,4.46359457]
[1727070772517,1.1728,2663.9,2663.8,4.46359457]
[1727070772712,1.1728,2663.9,2663.8,1.25579457]
[1727070773222,1.1728,2663.9,2663.8,5.93472257]
[1727070773413,0.3814,2663.9,2663.8,5.93472257]
[1727070773816,0.3814,2663.9,2663.8,6.32222257]
[1727070774040,0.3814,2663.9,2663.8,6.69760257]
[1727070774326,0.3782,2664.1,2663.8,6.69919436]
[1727070774514,0.3782,2664.1,2664.0,0.98177608]
[1727070775014,0.3953,2664.3,2664.0,1.6314033]
[1727070775321,0.3953,2664.3,2664.2,0.981672]
[1727070781922,0.3953,2664.3,2664.1,1.367272]
[1727070782521,0.3782,2664.4,2664.1,1.367272]
[1727070782727,0.7529,2664.6,2664.3,1.356972]
[1727070782929,0.3676,2664.6,2664.4,3.5678]
[1727070783223,0.3676,2664.6,2664.4,4.549472]
[1727070783434,0.3676,2664.6,2664.5,0.981672]
[1727070783618,0.3676,2664.6,2664.4,4.549472]
[1727070784018,0.3676,2664.6,2664.5,0.981672]
[1727070785017,2.81633,2664.9,2664.5,2.61281014]
[1727070785219,2.81633,2664.9,2664.6,3.38118773]
[1727070785220,2.4411,2664.9,2664.6,3.38118773]
[1727070785428,2.4411,2664.9,2664.7,0.981672]
[1727070786426,2.81633,2664.9,2664.7,0.981672]
[1727070786833,2.4411,2664.9,2664.7,0.981672]
[1727070787718,2.4411,2664.9,2664.6,1.750372]
[1727070788917,2.4411,2664.9,2664.7,0.981672]
[1727070789119,2.81633,2664.9,2664.7,0.981672]
[1727070789632,0.37524,2664.8,2664.6,1.750372]
[1727070789819,2.81633,2664.9,2664.6,1.750372]
[1727070790223,2.4411,2664.9,2664.6,1.750372]
[1727070790724,2.4411,2664.9,2664.7,0.981672]
[1727070790922,2.4411,2664.9,2664.6,1.750372]
[1727070791725,0.3911,2664.9,2664.6,2.125642]
[1727070792231,0.3676,2665.0,2664.6,2.125642]
[1727070792431,0.74281,2665.0,2664.6,2.125642]
[1727070792827,0.74281,2665.0,2664.7,40.8]
[1727070794228,0.37523,2664.9,2664.7,40.8]
[1727070794421,2.42523,2664.9,2664.6,1.750372]
[1727070794621,0.37525,2664.7,2664.5,0.981672]
[1727070795027,1.1493,2664.6,2664.5,0.981672]
[1727070795219,1.1493,2664.6,2664.4,4.189472]
[1727070795922,1.1493,2664.6,2664.4,3.2078]
[1727070796830,1.52457,2664.6,2664.4,3.2078]
[1727070797535,1.1493,2664.6,2664.4,3.2078]
[1727070799430,1.52457,2664.6,2664.4,3.2078]
[1727070800026,0.37528,2664.5,2664.4,3.2078]
[1727070800934,1.52457,2664.6,2664.4,3.2078]
[1727070801233,1.52457,2664.6,2664.4,4.189472]
[1727070801434,1.52457,2664.6,2664.4,3.2078]
[1727070802324,1.52457,2664.6,2664.3,1.735272]
[1727070802935,1.52457,2664.6,2664.4,40.8]
[1727070804338,2.47457,2664.6,2664.4,40.8]
[1727070804734,0.37528,2664.5,2664.4,40.8]
[1727070805722,2.47457,2664.6,2664.4,40.8]
[1727070806834,0.7547,2664.6,2664.4,41.781672]
[1727070807039,0.7547,2664.6,2664.5,0.981672]
[1727070807338,0.7547,2664.6,2664.4,41.781672]
[1727070812341,1.12997,2664.6,2664.4,41.781672]
[1727070812539,0.7547,2664.6,2664.4,41.781672]
[1727070814443,1.12997,2664.6,2664.4,41.781672]
[1727070815741,0.37528,2664.5,2664.4,40.8]
[1727070816132,1.12997,2664.6,2664.4,40.8]
[1727070816338,2.07997,2664.6,2664.4,41.781672]
[1727070816641,0.3855,2664.5,2664.4,41.781672]
[1727070817150,0.3855,2664.5,2664.4,40.8]
[1727070817344,0.3855,2664.5,2664.4,41.781672]
[1727070817947,0.3855,2664.5,2664.4,40.8]
[1727070818449,0.3855,2664.5,2664.4,41.781672]
[1727070819241,0.76078,2664.5,2664.4,41.781672]
[1727070819843,0.3855,2664.5,2664.4,41.781672]
[1727070820143,2.07997,2664.6,2664.4,41.781672]
[1727070822647,0.37528,2664.5,2664.4,41.781672]
[1727070822845,0.37528,2664.5,2664.4,43.03790337]
[1727070823149,0.37528,2664.5,2664.4,42.05623137]
[1727070823746,2.07998,2664.6,2664.4,42.05623137]
[1727070823948,1.12998,2664.6,2664.5,0.98182873]
[1727070824136,2.07998,2664.6,2664.5,0.98182873]
[1727070824845,1.72038,2664.6,2664.5,1.34872873]
[1727070826253,1.72038,2664.6,2664.5,1.6233227]
[1727070826254,1.3451,2664.6,2664.5,1.6233227]
[1727070826448,1.3451,2664.6,2664.5,2.60522627]
[1727070826956,1.72037,2664.6,2664.5,2.60522627]
[1727070827248,1.72037,2664.6,2664.5,1.6233227]
[1727070827552,1.72037,2664.6,2664.5,2.6050677]
[1727070827752,1.72037,2664.6,2664.5,1.6233227]
[1727070827945,1.72037,2664.6,2664.5,2.60503658]
[1727070828954,1.72037,2664.6,2664.5,1.6233227]
[1727070829346,1.72037,2664.6,2664.5,2.60495432]
[1727070829837,1.72037,2664.6,2664.5,1.6233227]
[1727070830250,1.72037,2664.6,2664.5,2.60497164]
[1727070830452,1.3451,2664.6,2664.5,2.60497164]
[1727070830643,1.3451,2664.6,2664.5,3.09604249]
[1727070830844,1.3451,2664.6,2664.5,1.6233227]
[1727070831152,1.3451,2664.6,2664.5,3.09604249]
[1727070831353,1.3451,2664.6,2664.5,2.60497421]
[1727070832345,1.72037,2664.6,2664.5,2.23814727]
[1727070832550,1.3451,2664.6,2664.5,2.72888075]
[1727070833442,1.72037,2664.6,2664.5,1.25616096]
[1727070833644,1.72037,2664.6,2664.5,2.23797492]
[1727070834256,1.72037,2664.6,2664.5,2.72888075]
[1727070834553,1.72037,2664.6,2664.5,1.25616096]
[1727070835342,1.96990846,2664.8,2664.5,2.72888075]
[1727070835644,1.32526,2664.7,2664.6,0.98197764]
[1727070838254,3.29516846,2664.7,2664.6,0.98197764]
[1727070838855,3.29516846,2664.7,2664.6,2.23886098]
[1727070840450,2.91990846,2664.7,2664.6,2.72960313]